fUSD/lending_fUSD_20240105
["ID","MTS","AMOUNT","RATE_DAILY","PERIOD"]
[310266292,1704425505411,-500.0,0.00037808,3]
[310266293,1704425505420,-500.0,0.00037808,3]
[310266294,1704425505429,-500.0,0.00037808,3]
[310266295,1704425505438,-500.0,0.00037808,3]
[310266296,1704425505448,-323.7283184,0.00037808,3]
[310266297,1704425505457,-624.75332184,0.00037808,3]
[310266298,1704425505466,-449.6,0.00037808,3]
[310266299,1704425505480,-376.44683054,0.00037808,3]
[310266300,1704425505489,-500.0,0.00037808,3]
[310266301,1704425505498,-500.0,0.00037808,3]
[310266302,1704425505508,-632.69150205,0.00037808,3]
[310266303,1704425505518,-500.0,0.00037808,3]
[310266304,1704425505527,-293.66599094,0.00037808,3]
[310266305,1704425505536,-500.0,0.00037808,3]
[310266306,1704425505546,-500.0,0.00037808,3]
[310266307,1704425505555,-500.0,0.00037808,3]
[310266308,1704425505565,-403.07761867,0.00037808,3]
[310266309,1704425505575,-482.60875096,0.00037808,3]
[310266310,1704425505584,-500.0,0.00037808,3]
[310266311,1704425505594,-500.0,0.00037808,3]
[310266312,1704425505604,-500.0,0.00037808,3]
[310266313,1704425505614,-500.0,0.00037808,3]
[310266314,1704425505623,-179.73493575,0.00037808,3]
[310266315,1704425505633,-500.0,0.00037808,3]
[310266316,1704425505642,-500.0,0.00037808,3]
[310266317,1704425505651,-237.16002705,0.00037808,3]
[310266318,1704425505661,-610.1041691,0.00037808,3]
[310266319,1704425505670,-607.51757548,0.00037808,3]
[310266320,1704425505679,-500.0,0.00037808,3]
[310266321,1704425505688,-500.0,0.00037808,3]
[310266322,1704425505698,-202.18382681,0.00037808,3]
[310266323,1704425505707,-500.18,0.00037808,3]
[310266324,1704425505716,-154.72348595,0.00037808,3]
[310266325,1704425505726,-500.0,0.00037808,3]
[310266326,1704425505735,-440.49138624,0.00037808,3]
[310266327,1704425505745,-1197.77,0.00037808,3]
[310266328,1704425505755,-500.0,0.00037808,3]
[310266329,1704425505764,-500.0,0.00037808,3]
[310266330,1704425505773,-159.5074211,0.00037808,3]
[310266331,1704425505783,-500.0,0.00037808,3]
[310266332,1704425505792,-652.01,0.00037808,3]
[310266333,1704425505802,-500.0,0.00037808,3]
[310266334,1704425505811,-511.87,0.00037808,3]
[310266335,1704425505821,-500.0,0.00037808,3]
[310266336,1704425505831,-500.0,0.00037808,3]
[310266337,1704425505841,-435.71425203,0.00037808,3]
[310266338,1704425505852,-3155.09,0.00037808,3]
[310266339,1704425505861,-1385.33,0.00037808,3]
[310266340,1704425505871,-500.0,0.00037808,3]
[310266341,1704425505880,-500.0,0.00037808,3]
[310266342,1704425505890,-869.26,0.00037808,3]
[310266343,1704425505899,-521.36,0.00037808,3]
[310266344,1704425505909,-500.0,0.00037808,3]
[310266345,1704425505918,-500.0,0.00037808,3]
[310266346,1704425505928,-500.0,0.00037808,3]
[310266347,1704425505938,-559.1,0.00037808,3]
[310266348,1704425505948,-500.0,0.00037808,3]
[310266349,1704425505958,-316.04589515,0.00037808,3]
[310266350,1704425505968,-500.0,0.00037808,3]
[310266351,1704425505977,-189.27985105,0.00037808,3]
[310266352,1704425505987,-500.0,0.00037808,3]
[310266353,1704425505996,-500.0,0.00037808,3]
[310266354,1704425506005,-2569.95,0.00037808,3]
[310266355,1704425506015,-576.28,0.00037808,3]
[310266356,1704425506024,-500.0,0.00037808,3]
[310266357,1704425506034,-741.91,0.00037808,3]
[310266358,1704425506044,-1829.56,0.00037808,3]
[310266359,1704425506054,-500.0,0.00037808,3]
[310266360,1704425506064,-500.0,0.00037808,3]
[310266361,1704425506073,-2961.4,0.00037808,3]
[310266362,1704425506083,-675.46,0.00037808,3]
[310266363,1704425506092,-500.0,0.00037808,3]
[310266364,1704425506103,-2578.41,0.00037808,3]
[310266365,1704425506114,-500.0,0.00037808,3]
[310266366,1704425506125,-576.96,0.00037808,3]
[310266367,1704425506135,-500.0,0.00037808,3]
[310266368,1704425506145,-1512.37,0.00037808,3]
[310266369,1704425506155,-500.0,0.00037808,3]
[310266370,1704425506164,-500.0,0.00037808,3]
[310266371,1704425506174,-1272.83,0.00037808,3]
[310266372,1704425506183,-500.0,0.00037808,3]
[310266373,1704425506193,-500.0,0.00037808,3]
[310266374,1704425506203,-743.82,0.00037808,3]
[310266375,1704425506212,-616.09,0.00037808,3]
[310266376,1704425506221,-500.0,0.00037808,3]
[310266377,1704425506231,-4571.22,0.00037808,3]
[310266378,1704425506241,-4339.97,0.00037808,3]
[310266379,1704425506251,-4803.84,0.00037808,3]
[310266380,1704425506260,-500.0,0.00037808,3]
[310266381,1704425506270,-699.3,0.00037808,3]
[310266382,1704425506280,-500.0,0.00037808,3]
[310266383,1704425506290,-572.55692129,0.00037808,3]
[310266384,1704425506299,-2881.09,0.00037808,3]
[310266385,1704425506308,-500.0,0.00037808,3]
[310266386,1704425506318,-1187.06,0.00037808,3]
[310266387,1704425506327,-741.45,0.00037808,3]
[310266388,1704425506337,-713.99,0.00037808,3]
[310266389,1704425506347,-500.0,0.00037808,3]
[310266390,1704425506358,-1438.74,0.00037808,3]
[310266391,1704425506367,-1151.77,0.00037808,3]
[310266392,1704425506377,-500.0,0.00037808,3]
[310266393,1704425506387,-1780.23,0.00037808,3]
[310266394,1704425506399,-1941.56,0.00037808,3]
[310266395,1704425506410,-500.0,0.00037808,3]
[310266396,1704425506419,-500.0,0.00037808,3]
[310266397,1704425506431,-737.76,0.00037808,3]
[310266398,1704425506441,-507.12,0.00037808,3]
[310266399,1704425506450,-1683.81,0.00037808,3]
[310266400,1704425506460,-500.0,0.00037808,3]
[310266401,1704425506470,-757.21,0.00037808,3]
[310266402,1704425506479,-605.55,0.00037808,3]
[310266403,1704425506492,-721.22,0.00037808,3]
[310266404,1704425506501,-1818.9,0.00037808,3]
[310266405,1704425506511,-1636.73,0.00037808,3]
[310266406,1704425506521,-808.83,0.00037808,3]
[310266407,1704425506530,-500.0,0.00037808,3]
[310266408,1704425506539,-500.0,0.00037808,3]
[310266409,1704425506549,-1154.3,0.00037808,3]
[310266410,1704425506558,-500.0,0.00037808,3]
[310266411,1704425506568,-2367.44,0.00037808,3]
[310266412,1704425506578,-685.21,0.00037808,3]
[310266413,1704425506588,-720.43,0.00037808,3]
[310266414,1704425506598,-494.35666325,0.00037808,3]
[310266415,1704425506608,-343.69759609,0.00037808,3]
[310266416,1704425506617,-12713.82,0.00037808,3]
[310266417,1704425506627,-500.0,0.00037808,3]
[310266418,1704425506637,-537.21,0.00037808,3]
[310266419,1704425506648,-500.0,0.00037808,3]
[310266420,1704425506658,-500.0,0.00037808,3]
[310266421,1704425506668,-1128.74,0.00037808,3]
[310266422,1704425506679,-1038.9,0.00037808,3]
[310266423,1704425506688,-1358.49,0.00037808,3]
[310266424,1704425506698,-856.28,0.00037808,3]
[310266425,1704425506708,-1000.47,0.00037808,3]
[310266426,1704425506717,-1014.3,0.00037808,3]
[310266427,1704425506728,-1090.34,0.00037808,3]
[310266428,1704425506738,-1239.16,0.00037808,3]
[310266429,1704425506749,-500.0,0.00037808,3]
[310266430,1704425506759,-5374.08,0.00037808,3]
[310266431,1704425506769,-532.58,0.00037808,3]
[310266432,1704425506779,-903.2,0.00037808,3]
[310266433,1704425506789,-500.0,0.00037808,3]
[310266434,1704425506799,-500.0,0.00037808,3]
[310266435,1704425506809,-543.93,0.00037808,3]
[310266436,1704425506819,-500.0,0.00037808,3]
[310266437,1704425506829,-500.0,0.00037808,3]
[310266438,1704425506838,-847.35,0.00037808,3]
[310266439,1704425506850,-926.28,0.00037808,3]
[310266440,1704425506859,-525.14,0.00037808,3]
[310266441,1704425506868,-500.0,0.00037808,3]
[310266442,1704425506877,-597.71,0.00037808,3]
[310266443,1704425506887,-7505.95,0.00037808,3]
[310266444,1704425506897,-714.54,0.00037808,3]
[310266445,1704425506907,-500.0,0.00037808,3]
[310266446,1704425506917,-500.0,0.00037808,3]
[310266447,1704425506926,-500.0,0.00037808,3]
[310266448,1704425506937,-500.0,0.00037808,3]
[310266449,1704425506947,-500.0,0.00037808,3]
[310266450,1704425506957,-500.0,0.00037808,3]
[310266451,1704425506967,-500.0,0.00037808,3]
[310266452,1704425506977,-836.59,0.00037808,3]
[310266453,1704425506986,-500.0,0.00037808,3]
[310266454,1704425506996,-500.0,0.00037808,3]
[310266455,1704425507006,-843.48,0.00037808,3]
[310266456,1704425507016,-500.0,0.00037808,3]
[310266457,1704425507048,-500.0,0.00037808,3]
[310266458,1704425507057,-2843.39,0.00037808,3]
[310266459,1704425507067,-731.98,0.00037808,3]
[310266460,1704425507077,-500.0,0.00037808,3]
[310266461,1704425507086,-765.74,0.00037808,3]
[310266462,1704425507096,-500.0,0.00037808,3]
[310266463,1704425507111,-687.9,0.00037808,3]
[310266464,1704425507122,-500.0,0.00037808,3]
[310266465,1704425507132,-920.29,0.00037808,3]
[310266466,1704425507142,-500.0,0.00037808,3]
[310266467,1704425507153,-608.15,0.00037808,3]
[310266468,1704425507163,-500.0,0.00037808,3]
[310266469,1704425507173,-500.0,0.00037808,3]
[310266470,1704425507183,-500.0,0.00037808,3]
[310266471,1704425507193,-500.0,0.00037808,3]
[310266472,1704425507203,-499.69038485,0.00037808,3]
[310266473,1704425507212,-500.0,0.00037808,3]
[310266474,1704425507222,-995.28,0.00037808,3]
[310266475,1704425507231,-1208.34,0.00037808,3]
[310266476,1704425507241,-3826.66,0.00037808,3]
[310266477,1704425507251,-500.0,0.00037808,3]
[310266478,1704425507261,-1465.93,0.00037808,3]
[310266479,1704425507271,-2214.47,0.00037808,3]
[310266480,1704425507280,-975.28,0.00037808,3]
[310266481,1704425507289,-500.0,0.00037808,3]
[310266482,1704425507298,-500.0,0.00037808,3]
[310266483,1704425507308,-238.475206,0.00037862,2]
[310266484,1704425507318,-1505.64806425,0.00037869,2]
[310266485,1704425507327,-675365.284558,0.000379,2]
[310266486,1704425507337,-1000.0,0.00037944,2]
[310266487,1704425507348,-3956.0,0.0003799,2]
[310266488,1704425507360,-157.40105,0.00037998,2]
[310266489,1704425507369,-1497.98757741,0.00038,2]
[310266490,1704425507378,-454.24809273,0.00038,4]
[310266491,1704425507388,-168.0,0.00038,2]
[310266492,1704425507397,-157.0,0.00038,2]
[310266493,1704425507407,-163.0,0.00038,2]
[310266494,1704425507417,-510.59,0.00038082,3]
[310266495,1704425507426,-500.0,0.00038082,3]
[310266496,1704425507436,-500.0,0.00038082,3]
[310266497,1704425507445,-500.0,0.00038082,3]
[310266498,1704425507456,-585.48,0.00038082,3]
[310266499,1704425507465,-500.0,0.00038082,3]
[310266500,1704425507477,-500.0,0.00038082,3]
[310266501,1704425507489,-500.0,0.00038082,3]
[310266502,1704425507499,-502.6875373,0.00038082,3]
[310266503,1704425507509,-500.0,0.00038082,3]
[310266504,1704425507518,-500.0,0.00038082,3]
[310266505,1704425507528,-500.0,0.00038082,3]
[310266506,1704425507538,-500.0,0.00038082,3]
[310266507,1704425507547,-500.0,0.00038082,3]
[310266508,1704425507557,-576.64833752,0.00038082,3]
[310266509,1704425507567,-500.0,0.00038082,3]
[310266510,1704425507577,-500.0,0.00038082,3]
[310266511,1704425507586,-500.0,0.00038082,3]
[310266512,1704425507597,-500.0,0.00038082,3]
[310266513,1704425507609,-500.0,0.00038082,3]
[310266514,1704425507815,-500.0,0.00038082,3]
[310266515,1704425507825,-500.0,0.00038082,3]
[310266516,1704425507835,-914.92,0.00038082,3]
[310266517,1704425507844,-500.0,0.00038082,3]
[310266518,1704425507854,-729.05,0.00038082,3]
[310266519,1704425507864,-1671.27,0.00038082,3]
[310266520,1704425507873,-500.0,0.00038082,3]
[310266521,1704425507883,-500.0,0.00038082,3]
[310266522,1704425507894,-500.0,0.00038082,3]
[310266523,1704425507905,-500.0,0.00038082,3]
[310266524,1704425507916,-500.0,0.00038082,3]
[310266525,1704425507926,-500.0,0.00038082,3]
[310266526,1704425507935,-500.0,0.00038082,3]
[310266527,1704425507945,-838.94,0.00038082,3]
[310266528,1704425507954,-500.0,0.00038082,3]
[310266529,1704425507963,-500.0,0.00038082,3]
[310266530,1704425507973,-500.0,0.00038082,3]
[310266531,1704425507982,-500.0,0.00038082,3]
[310266532,1704425507991,-484.36184537,0.00038082,3]
[310266533,1704425508001,-500.0,0.00038082,3]
[310266534,1704425508010,-500.0,0.00038082,3]
[310266535,1704425508019,-500.0,0.00038082,3]
[310266536,1704425508029,-500.0,0.00038082,3]
[310266537,1704425508038,-500.0,0.00038082,3]
[310266538,1704425508047,-500.0,0.00038082,3]
[310266539,1704425508057,-500.0,0.00038082,3]
[310266540,1704425508066,-500.0,0.00038082,3]
[310266541,1704425508075,-500.0,0.00038082,3]
[310266542,1704425508085,-527.86534596,0.00038082,3]
[310266543,1704425508094,-500.0,0.00038082,3]
[310266544,1704425508104,-500.0,0.00038082,3]
[310266545,1704425508113,-500.0,0.00038082,3]
[310266546,1704425508122,-464.11904582,0.00038082,3]
[310266547,1704425508131,-500.0,0.00038082,3]
[310266548,1704425508140,-500.0,0.00038082,3]
[310266549,1704425508149,-500.0,0.00038082,3]
[310266550,1704425508158,-168.41232998,0.00038082,3]
[310266551,1704425508168,-500.0,0.00038082,3]
[310266552,1704425508177,-513.95375874,0.00038082,3]
[310266553,1704425508186,-581.59,0.00038082,3]
[310266554,1704425508195,-501.25,0.00038082,3]
[310266555,1704425508204,-500.0,0.00038082,3]
[310266556,1704425508214,-171.60017661,0.00038082,3]
[310266557,1704425508224,-890.64,0.00038082,3]
[310266558,1704425508233,-500.0,0.00038082,3]
[310266559,1704425508242,-500.0,0.00038082,3]
[310266560,1704425508252,-500.0,0.00038082,3]
[310266561,1704425508261,-500.0,0.00038082,3]
[310266562,1704425508270,-500.0,0.00038082,3]
[310266563,1704425508279,-588.97397049,0.00038082,3]
[310266564,1704425508289,-500.0,0.00038082,3]
[310266565,1704425508298,-500.0,0.00038082,3]
[310266566,1704425508308,-500.0,0.00038082,3]
[310266567,1704425508317,-500.0,0.00038082,3]
[310266568,1704425508326,-500.0,0.00038082,3]
[310266569,1704425508335,-500.0,0.00038082,3]
[310266570,1704425508345,-500.0,0.00038082,3]
[310266571,1704425508354,-388.61186461,0.00038082,3]
[310266572,1704425508364,-500.0,0.00038082,3]
[310266573,1704425508373,-546.6053658,0.00038082,3]
[310266574,1704425508382,-552.24000402,0.00038082,3]
[310266575,1704425508392,-500.0,0.00038082,3]
[310266576,1704425508401,-431.60118367,0.00038082,3]
[310266577,1704425508410,-384.78277554,0.00038082,3]
[310266578,1704425508419,-500.18,0.00038082,3]
[310266579,1704425508428,-228.16290157,0.00038082,3]
[310266580,1704425508438,-1197.77,0.00038082,3]
[310266581,1704425508447,-500.0,0.00038082,3]
[310266582,1704425508457,-500.0,0.00038082,3]
[310266583,1704425508467,-500.0,0.00038082,3]
[310266584,1704425508477,-652.01,0.00038082,3]
[310266585,1704425508488,-500.0,0.00038082,3]
[310266586,1704425508498,-511.87,0.00038082,3]
[310266587,1704425508507,-244.64927745,0.00038082,3]
[310266588,1704425508517,-500.0,0.00038082,3]
[310266589,1704425508527,-3155.09,0.00038082,3]
[310266590,1704425508536,-1385.33,0.00038082,3]
[310266591,1704425508545,-500.0,0.00038082,3]
[310266592,1704425508554,-500.0,0.00038082,3]
[310266593,1704425508564,-869.26,0.00038082,3]
[310266594,1704425508573,-524.46405489,0.00038082,3]
[310266595,1704425508582,-500.0,0.00038082,3]
[310266596,1704425508592,-500.0,0.00038082,3]
[310266597,1704425508602,-559.1,0.00038082,3]
[310266598,1704425508611,-500.0,0.00038082,3]
[310266599,1704425508620,-500.0,0.00038082,3]
[310266600,1704425508630,-500.0,0.00038082,3]
[310266601,1704425508639,-500.0,0.00038082,3]
[310266602,1704425508649,-2569.95,0.00038082,3]
[310266603,1704425508658,-500.0,0.00038082,3]
[310266604,1704425508667,-576.28,0.00038082,3]
[310266605,1704425508677,-741.91,0.00038082,3]
[310266606,1704425508686,-1829.56,0.00038082,3]
[310266607,1704425508696,-500.0,0.00038082,3]
[310266608,1704425508706,-500.0,0.00038082,3]
[310266609,1704425508716,-2961.4,0.00038082,3]
[310266610,1704425508725,-675.46,0.00038082,3]
[310266611,1704425508735,-500.0,0.00038082,3]
[310266612,1704425508745,-2578.41,0.00038082,3]
[310266613,1704425508754,-639.774433,0.00038082,3]
[310266614,1704425508763,-576.96,0.00038082,3]
[310266615,1704425508773,-500.0,0.00038082,3]
[310266616,1704425508782,-1512.37,0.00038082,3]
[310266617,1704425508791,-500.0,0.00038082,3]
[310266618,1704425508801,-497.0602532,0.00038082,3]
[310266619,1704425508811,-1272.83,0.00038082,3]
[310266620,1704425508821,-500.0,0.00038082,3]
[310266621,1704425508831,-500.0,0.00038082,3]
[310266622,1704425508840,-743.82,0.00038082,3]
[310266623,1704425508850,-616.09,0.00038082,3]
[310266624,1704425508860,-500.0,0.00038082,3]
[310266625,1704425508869,-4571.22,0.00038082,3]
[310266626,1704425508879,-4339.97,0.00038082,3]
[310266627,1704425508888,-4803.84,0.00038082,3]
[310266628,1704425508898,-500.0,0.00038082,3]
[310266629,1704425508908,-699.3,0.00038082,3]
[310266630,1704425508917,-500.0,0.00038082,3]
[310266631,1704425508926,-2881.09,0.00038082,3]
[310266632,1704425508936,-500.0,0.00038082,3]
[310266633,1704425508945,-1187.06,0.00038082,3]
[310266634,1704425508955,-741.45,0.00038082,3]
[310266635,1704425508965,-713.99,0.00038082,3]
[310266636,1704425508974,-500.0,0.00038082,3]
[310266637,1704425508985,-1438.74,0.00038082,3]
[310266638,1704425508994,-1151.77,0.00038082,3]
[310266639,1704425509004,-500.0,0.00038082,3]
[310266640,1704425509013,-1780.23,0.00038082,3]
[310266641,1704425509022,-1941.56,0.00038082,3]
[310266642,1704425509031,-546.06809297,0.00038082,3]
[310266643,1704425509040,-500.0,0.00038082,3]
[310266644,1704425509050,-737.76,0.00038082,3]
[310266645,1704425509059,-507.12,0.00038082,3]
[310266646,1704425509069,-1683.81,0.00038082,3]
[310266647,1704425509078,-512.2823916,0.00038082,3]
[310266648,1704425509087,-757.21,0.00038082,3]
[310266649,1704425509096,-605.55,0.00038082,3]
[310266650,1704425509107,-721.22,0.00038082,3]
[310266651,1704425509116,-1818.9,0.00038082,3]
[310266652,1704425509125,-1636.73,0.00038082,3]
[310266653,1704425509134,-808.83,0.00038082,3]
[310266654,1704425509143,-500.0,0.00038082,3]
[310266655,1704425509152,-500.0,0.00038082,3]
[310266656,1704425509162,-1154.3,0.00038082,3]
[310266657,1704425509171,-500.0,0.00038082,3]
[310266658,1704425509180,-2367.44,0.00038082,3]
[310266659,1704425509189,-685.21,0.00038082,3]
[310266660,1704425509198,-720.43,0.00038082,3]
[310266661,1704425509207,-12713.82,0.00038082,3]
[310266662,1704425509217,-500.0,0.00038082,3]
[310266663,1704425509226,-537.21,0.00038082,3]
[310266664,1704425509234,-500.0,0.00038082,3]
[310266665,1704425509244,-500.0,0.00038082,3]
[310266666,1704425509253,-1128.74,0.00038082,3]
[310266667,1704425509262,-1038.9,0.00038082,3]
[310266668,1704425509273,-1358.49,0.00038082,3]
[310266669,1704425509282,-856.28,0.00038082,3]
[310266670,1704425509291,-1000.47,0.00038082,3]
[310266671,1704425509300,-1014.3,0.00038082,3]
[310266672,1704425509309,-1090.34,0.00038082,3]
[310266673,1704425509318,-1239.16,0.00038082,3]
[310266674,1704425509328,-500.0,0.00038082,3]
[310266675,1704425509338,-5374.08,0.00038082,3]
[310266676,1704425509348,-532.58,0.00038082,3]
[310266677,1704425509359,-903.2,0.00038082,3]
[310266678,1704425509368,-500.0,0.00038082,3]
[310266679,1704425509377,-500.0,0.00038082,3]
[310266680,1704425509387,-543.93,0.00038082,3]
[310266681,1704425509397,-500.0,0.00038082,3]
[310266682,1704425509406,-500.0,0.00038082,3]
[310266683,1704425509415,-847.35,0.00038082,3]
[310266684,1704425509424,-926.28,0.00038082,3]
[310266685,1704425509434,-525.14,0.00038082,3]
[310266686,1704425509442,-500.0,0.00038082,3]
[310266687,1704425509452,-597.71,0.00038082,3]
[310266688,1704425509461,-7505.95,0.00038082,3]
[310266689,1704425509471,-714.54,0.00038082,3]
[310266690,1704425509483,-500.0,0.00038082,3]
[310266691,1704425509494,-500.0,0.00038082,3]
[310266692,1704425509503,-500.0,0.00038082,3]
[310266693,1704425509513,-500.0,0.00038082,3]
[310266694,1704425509522,-500.0,0.00038082,3]
[310266695,1704425509531,-500.0,0.00038082,3]
[310266696,1704425509541,-500.0,0.00038082,3]
[310266697,1704425509551,-836.59,0.00038082,3]
[310266698,1704425509560,-500.0,0.00038082,3]
[310266699,1704425509570,-500.0,0.00038082,3]
[310266700,1704425509579,-843.48,0.00038082,3]
[310266701,1704425509588,-500.0,0.00038082,3]
[310266702,1704425509598,-500.0,0.00038082,3]
[310266703,1704425509609,-2843.39,0.00038082,3]
[310266704,1704425509618,-731.98,0.00038082,3]
[310266705,1704425509628,-500.0,0.00038082,3]
[310266706,1704425509638,-765.74,0.00038082,3]
[310266707,1704425509648,-500.0,0.00038082,3]
[310266708,1704425509658,-687.9,0.00038082,3]
[310266709,1704425509667,-500.0,0.00038082,3]
[310266710,1704425509678,-920.29,0.00038082,3]
[310266711,1704425509687,-500.0,0.00038082,3]
[310266712,1704425509697,-608.15,0.00038082,3]
[310266713,1704425509706,-500.0,0.00038082,3]
[310266714,1704425509716,-500.0,0.00038082,3]
[310266715,1704425509726,-500.0,0.00038082,3]
[310266716,1704425509736,-500.0,0.00038082,3]
[310266717,1704425509746,-418.78353016,0.00038082,3]
[310266718,1704425509755,-995.28,0.00038082,3]
[310266719,1704425509765,-1208.34,0.00038082,3]
[310266720,1704425509775,-3826.66,0.00038082,3]
[310266721,1704425509784,-237.83067962,0.00038082,3]
[310266722,1704425509794,-1465.93,0.00038082,3]
[310266723,1704425509804,-2214.47,0.00038082,3]
[310266724,1704425509814,-975.28,0.00038082,3]
[310266725,1704425509824,-500.0,0.00038082,3]
[310266726,1704425509834,-151.64107581,0.00038082,3]
[310266727,1704425509843,-568.349685,0.00038082,14]
[310266728,1704425509853,-8248.29,0.000381,7]
[310266729,1704425509863,-13965.33,0.000381,7]
[310266730,1704425509873,-500.0,0.00038135,2]
[310266731,1704425509882,-150.0,0.00038142,2]
[310266732,1704425509892,-150.0,0.00038144,2]
[310266733,1704425509901,-1000.0,0.0003815,2]
[310266734,1704425509910,-1000.0,0.00038164,10]
[310266735,1704425509920,-150.0,0.00038191,2]
[310266736,1704425509929,-157.40105,0.00038198,2]
[310266737,1704425509941,-100000.0,0.000382,2]
[310266738,1704425509951,-151.77874977,0.00038205,120]
[310266739,1704425509960,-154.0,0.00038205,120]
[310266740,1704425509969,-1216.255,0.00038205,30]
[310266741,1704425509979,-172.78470541,0.00038205,22]
[310266742,1704425509988,-9289.29206948,0.00038205,30]
[310266743,1704425509998,-2048.261065,0.00038205,30]
[310266744,1704425510007,-304.531688,0.00038205,30]
[310266745,1704425510016,-1393.40320895,0.00038205,30]
[310266746,1704425510025,-1486.86188418,0.00038205,120]
[310266747,1704425510035,-1064.18381701,0.00038205,30]
[310266748,1704425510044,-1963.278674,0.00038205,30]
[310266749,1704425510053,-22468.60563714,0.00038205,60]
[310266750,1704425510062,-1505.64806425,0.0003823,2]
[310266751,1704425510072,-1503.97071,0.0003824,2]
[310266752,1704425510081,-238.475206,0.0003833,2]
[310266753,1704425510090,-163.331625,0.0003833,2]
[310266754,1704425510099,-150.0,0.00038345,2]
[310266755,1704425510109,-150.0,0.00038346,2]
[310266756,1704425510120,-409.62,0.00038352,2]
[310266757,1704425510129,-1000.0,0.00038355,2]
[310266758,1704425510138,-1604.59309295,0.00038356,30]
[310266759,1704425510148,-510.59,0.00038356,3]
[310266760,1704425510157,-577.15563712,0.00038356,3]
[310266761,1704425510167,-500.0,0.00038356,3]
[310266762,1704425510323,-500.0,0.00038356,3]
[310266763,1704425510333,-585.48,0.00038356,3]
[310266764,1704425510342,-228.48703906,0.00038356,3]
[310266765,1704425510351,-500.0,0.00038356,3]
[310266766,1704425510360,-174.26537806,0.00038356,3]
[310266767,1704425510369,-500.0,0.00038356,3]
[310266768,1704425510379,-549.60132599,0.00038356,3]
[310266769,1704425510388,-500.0,0.00038356,3]
[310266770,1704425510398,-666.0,0.00038356,2]
[310266771,1704425510407,-500.0,0.00038356,3]
[310266772,1704425510416,-500.0,0.00038356,3]
[310266773,1704425510425,-500.0,0.00038356,3]
[310266774,1704425510434,-500.0,0.00038356,3]
[310266775,1704425510443,-500.0,0.00038356,3]
[310266776,1704425510452,-458.44705886,0.00038356,3]
[310266777,1704425510461,-500.0,0.00038356,3]
[310266778,1704425510470,-500.0,0.00038356,3]
[310266779,1704425510479,-500.0,0.00038356,3]
[310266780,1704425510491,-914.92,0.00038356,3]
[310266781,1704425510500,-500.0,0.00038356,3]
[310266782,1704425510510,-729.05,0.00038356,3]
[310266783,1704425510519,-1671.27,0.00038356,3]
[310266784,1704425510528,-500.0,0.00038356,3]
[310266785,1704425510538,-500.0,0.00038356,3]
[310266786,1704425510548,-500.0,0.00038356,3]
[310266787,1704425510557,-500.0,0.00038356,3]
[310266788,1704425510566,-500.0,0.00038356,3]
[310266789,1704425510575,-500.0,0.00038356,3]
[310266790,1704425510585,-500.0,0.00038356,3]
[310266791,1704425510594,-838.94,0.00038356,3]